fUSD/lending_fUSD_20250806
["ID","MTS","AMOUNT","RATE_DAILY","PERIOD"]
[377555181,1754441492375,-1248.2,0.00036164,14]
[377555182,1754441492384,-507.76,0.00036164,14]
[377555183,1754441492393,-400.0,0.00036164,14]
[377555184,1754441492403,-854.64,0.00036164,14]
[377555185,1754441492412,-400.0,0.00036164,14]
[377555186,1754441492422,-1046.6,0.00036164,14]
[377555187,1754441492431,-1797.49,0.00036164,14]
[377555188,1754441492441,-632.73,0.00036164,14]
[377555189,1754441492450,-533.96,0.00036164,14]
[377555190,1754441492460,-614.87,0.00036164,14]
[377555191,1754441492469,-400.0,0.00036164,14]
[377555192,1754441492478,-1994.69,0.00036164,14]
[377555193,1754441492488,-666.2,0.00036164,14]
[377555194,1754441492497,-400.0,0.00036164,14]
[377555195,1754441492507,-489.75260226,0.00036164,14]
[377555196,1754441492516,-400.0,0.00036164,14]
[377555197,1754441492525,-400.0,0.00036164,14]
[377555198,1754441492535,-400.0,0.00036164,14]
[377555199,1754441492544,-1840.58,0.00036164,14]
[377555200,1754441492553,-400.0,0.00036164,14]
[377555201,1754441492563,-512.97,0.00036164,14]
[377555202,1754441492572,-400.0,0.00036164,14]
[377555203,1754441492583,-766.55,0.00036164,14]
[377555204,1754441492592,-400.0,0.00036164,14]
[377555205,1754441492602,-400.0,0.00036164,14]
[377555206,1754441492611,-631.05,0.00036164,14]
[377555207,1754441492620,-964.41,0.00036164,14]
[377555208,1754441492630,-400.0,0.00036164,14]
[377555209,1754441492639,-3265.04,0.00036164,14]
[377555210,1754441492648,-400.0,0.00036164,14]
[377555211,1754441492658,-400.0,0.00036164,14]
[377555212,1754441492668,-400.0,0.00036164,14]
[377555213,1754441492677,-400.0,0.00036164,14]
[377555214,1754441492687,-400.0,0.00036164,14]
[377555215,1754441492696,-400.0,0.00036164,14]
[377555216,1754441492706,-920.23,0.00036164,14]
[377555217,1754441492716,-1923.98,0.00036164,14]
[377555218,1754441492725,-400.0,0.00036164,14]
[377555219,1754441492735,-400.0,0.00036164,14]
[377555220,1754441492744,-400.0,0.00036164,14]
[377555221,1754441492754,-1946.53,0.00036164,14]
[377555222,1754441492763,-514.46,0.00036164,14]
[377555223,1754441492773,-478.45,0.00036164,14]
[377555224,1754441492783,-650.99,0.00036164,14]
[377555225,1754441492793,-400.0,0.00036164,14]
[377555226,1754441492803,-2412.04,0.00036164,14]
[377555227,1754441492812,-990.84,0.00036164,14]
[377555228,1754441492821,-2190.51,0.00036164,14]
[377555229,1754441492832,-1416.57,0.00036164,14]
[377555230,1754441492842,-521.05,0.00036164,14]
[377555231,1754441492852,-581.53,0.00036164,14]
[377555232,1754441492864,-400.0,0.00036164,14]
[377555233,1754441492873,-526.05,0.00036164,14]
[377555234,1754441492884,-400.0,0.00036164,14]
[377555235,1754441492894,-1498.58,0.00036164,14]
[377555236,1754441492905,-400.0,0.00036164,14]
[377555237,1754441492915,-400.0,0.00036164,14]
[377555238,1754441492925,-400.0,0.00036164,14]
[377555239,1754441492937,-1650.56,0.00036164,14]
[377555240,1754441492947,-1014.39,0.00036164,14]
[377555241,1754441492956,-400.0,0.00036164,14]
[377555242,1754441492966,-400.0,0.00036164,14]
[377555243,1754441492975,-1875.14,0.00036164,14]
[377555244,1754441492986,-1715.69,0.00036164,14]
[377555245,1754441492996,-400.0,0.00036164,14]
[377555246,1754441493006,-771.72,0.00036164,14]
[377555247,1754441493016,-836.78,0.00036164,14]
[377555248,1754441493025,-1849.5,0.00036164,14]
[377555249,1754441493034,-400.0,0.00036164,14]
[377555250,1754441493044,-400.0,0.00036164,14]
[377555251,1754441493055,-400.0,0.00036164,14]
[377555252,1754441493064,-529.89,0.00036164,14]
[377555253,1754441493074,-400.0,0.00036164,14]
[377555254,1754441493084,-1047.53,0.00036164,14]
[377555255,1754441493095,-1752.33,0.00036164,14]
[377555256,1754441493106,-1191.56,0.00036164,14]
[377555257,1754441493117,-563.85,0.00036164,14]
[377555258,1754441493127,-1624.0,0.00036164,14]
[377555259,1754441493138,-1200.48,0.00036164,14]
[377555260,1754441493148,-400.0,0.00036164,14]
[377555261,1754441493157,-400.0,0.00036164,14]
[377555262,1754441493167,-1116.23,0.00036164,14]
[377555263,1754441493177,-1360.82,0.00036164,14]
[377555264,1754441493187,-400.0,0.00036164,14]
[377555265,1754441493197,-1297.93,0.00036164,14]
[377555266,1754441493207,-1055.87,0.00036164,14]
[377555267,1754441493218,-1402.99,0.00036164,14]
[377555268,1754441493228,-325.55730151,0.00036164,14]
[377555269,1754441493238,-1917.5,0.00036164,14]
[377555270,1754441493248,-400.0,0.00036164,14]
[377555271,1754441493257,-400.0,0.00036164,14]
[377555272,1754441493268,-400.0,0.00036164,14]
[377555273,1754441493278,-400.0,0.00036164,14]
[377555274,1754441493288,-433.34,0.00036164,14]
[377555275,1754441493298,-400.0,0.00036164,14]
[377555276,1754441493308,-400.0,0.00036164,14]
[377555277,1754441493317,-1094.1,0.00036164,14]
[377555278,1754441493327,-400.0,0.00036164,14]
[377555279,1754441493337,-435.5,0.00036164,14]
[377555280,1754441493347,-1461.24,0.00036164,14]
[377555281,1754441493357,-1272.63,0.00036164,14]
[377555282,1754441493367,-400.0,0.00036164,14]
[377555283,1754441493376,-400.0,0.00036164,14]
[377555284,1754441493386,-452.97,0.00036164,14]
[377555285,1754441493395,-400.0,0.00036164,14]
[377555286,1754441493405,-400.0,0.00036164,14]
[377555287,1754441493414,-1291.48,0.00036164,14]
[377555288,1754441493424,-400.0,0.00036164,14]
[377555289,1754441493434,-1820.35,0.00036164,14]
[377555290,1754441493443,-498.68,0.00036164,14]
[377555291,1754441493453,-557.47,0.00036164,14]
[377555292,1754441493462,-809.74,0.00036164,14]
[377555293,1754441493472,-400.0,0.00036164,14]
[377555294,1754441493482,-400.0,0.00036164,14]
[377555295,1754441493491,-848.54,0.00036164,14]
[377555296,1754441493501,-400.0,0.00036164,14]
[377555297,1754441493512,-1559.39,0.00036164,14]
[377555298,1754441493522,-400.0,0.00036164,14]
[377555299,1754441493532,-1085.14,0.00036164,14]
[377555300,1754441493542,-400.0,0.00036164,14]
[377555301,1754441493552,-1795.99,0.00036164,14]
[377555302,1754441493561,-845.21,0.00036164,14]
[377555303,1754441493571,-400.0,0.00036164,14]
[377555304,1754441493581,-531.77,0.00036164,14]
[377555305,1754441493591,-1614.31,0.00036164,14]
[377555306,1754441493601,-1854.06,0.00036164,14]
[377555307,1754441493611,-400.0,0.00036164,14]
[377555308,1754441493620,-400.0,0.00036164,14]
[377555309,1754441493630,-1761.8,0.00036164,14]
[377555310,1754441493639,-400.0,0.00036164,14]
[377555311,1754441493649,-400.0,0.00036164,14]
[377555312,1754441493661,-417.98,0.00036164,14]
[377555313,1754441493670,-400.0,0.00036164,14]
[377555314,1754441493680,-636.74,0.00036164,14]
[377555315,1754441493690,-400.0,0.00036164,14]
[377555316,1754441493699,-400.0,0.00036164,14]
[377555317,1754441493709,-400.0,0.00036164,14]
[377555318,1754441493719,-400.0,0.00036164,14]
[377555319,1754441493728,-962.29,0.00036164,14]
[377555320,1754441493738,-400.0,0.00036164,14]
[377555321,1754441493748,-400.0,0.00036164,14]
[377555322,1754441493758,-985.83,0.00036164,14]
[377555323,1754441493768,-575.52,0.00036164,14]
[377555324,1754441493778,-895.88,0.00036164,14]
[377555325,1754441493789,-763.72,0.00036164,14]
[377555326,1754441493799,-400.0,0.00036164,14]
[377555327,1754441493809,-400.0,0.00036164,14]
[377555328,1754441493819,-400.0,0.00036164,14]
[377555329,1754441493829,-400.0,0.00036164,14]
[377555330,1754441493839,-578.12,0.00036164,14]
[377555331,1754441493849,-1133.64,0.00036164,14]
[377555332,1754441493861,-400.0,0.00036164,14]
[377555333,1754441493872,-491.91,0.00036164,14]
[377555334,1754441493882,-2061.36,0.00036164,14]
[377555335,1754441493891,-1194.56,0.00036164,14]
[377555336,1754441493902,-2206.93,0.00036164,14]
[377555337,1754441493912,-400.0,0.00036164,14]
[377555338,1754441493923,-997.7,0.00036164,14]
[377555339,1754441493935,-424.18,0.00036164,14]
[377555340,1754441493945,-400.0,0.00036164,14]
[377555341,1754441493955,-1285.31,0.00036164,14]
[377555342,1754441493965,-501.13,0.00036164,14]
[377555343,1754441493975,-762.45,0.00036164,14]
[377555344,1754441493984,-400.0,0.00036164,14]
[377555345,1754441493994,-400.0,0.00036164,14]
[377555346,1754441494004,-400.0,0.00036164,14]
[377555347,1754441494014,-666.76,0.00036164,14]
[377555348,1754441494025,-3144.17,0.00036164,14]
[377555349,1754441494035,-619.76,0.00036164,14]
[377555350,1754441494047,-400.0,0.00036164,14]
[377555351,1754441494058,-1281.53,0.00036164,14]
[377555352,1754441494067,-400.0,0.00036164,14]
[377555353,1754441494077,-400.0,0.00036164,14]
[377555354,1754441494088,-1798.71,0.00036164,14]
[377555355,1754441494097,-400.0,0.00036164,14]
[377555356,1754441494107,-477.03,0.00036164,14]
[377555357,1754441494117,-722.2,0.00036164,14]
[377555358,1754441494127,-400.0,0.00036164,14]
[377555359,1754441494137,-2901.82,0.00036164,14]
[377555360,1754441494147,-1561.04,0.00036164,14]
[377555361,1754441494157,-404.98,0.00036164,14]
[377555362,1754441494168,-231.69546116,0.00036164,14]
[377555363,1754441494178,-400.0,0.00036164,14]
[377555364,1754441494188,-819.59,0.00036164,14]
[377555365,1754441494198,-2115.61,0.00036164,14]
[377555366,1754441494208,-1101.95,0.00036164,14]
[377555367,1754441494218,-400.0,0.00036164,14]
[377555368,1754441494229,-400.0,0.00036164,14]
[377555369,1754441494239,-400.0,0.00036164,14]
[377555370,1754441494249,-644.6,0.00036164,14]
[377555371,1754441494260,-933.92,0.00036164,14]
[377555372,1754441494270,-400.0,0.00036164,14]
[377555373,1754441494281,-1062.27,0.00036164,14]
[377555374,1754441494291,-400.0,0.00036164,14]
[377555375,1754441494301,-400.0,0.00036164,14]
[377555376,1754441494310,-1975.92,0.00036164,14]
[377555377,1754441494320,-2033.34,0.00036164,14]
[377555378,1754441494330,-1995.46,0.00036164,14]
[377555379,1754441494448,-400.0,0.00036164,14]
[377555380,1754441494458,-1249.96,0.00036164,14]
[377555381,1754441494467,-400.0,0.00036164,14]
[377555382,1754441494476,-2205.56,0.00036164,14]
[377555383,1754441494486,-400.0,0.00036164,14]
[377555384,1754441494496,-2118.37,0.00036164,14]
[377555385,1754441494506,-400.0,0.00036164,14]
[377555386,1754441494516,-938.93,0.00036164,14]
[377555387,1754441494525,-1975.95,0.00036164,14]
[377555388,1754441494536,-400.0,0.00036164,14]
[377555389,1754441494545,-400.0,0.00036164,14]
[377555390,1754441494555,-1600.17,0.00036164,14]
[377555391,1754441494564,-500.0,0.00036164,2]
[377555392,1754441494573,-500.0,0.00036164,2]
[377555393,1754441494583,-200.0,0.00036164,2]
[377555394,1754441494593,-400.0,0.00036164,14]
[377555395,1754441494602,-513.71,0.00036164,14]
[377555396,1754441494611,-2653.63,0.00036164,14]
[377555397,1754441494621,-1457.15,0.00036164,14]
[377555398,1754441494630,-442.2,0.00036164,14]
[377555399,1754441494641,-1048.68,0.00036164,14]
[377555400,1754441494650,-400.0,0.00036164,14]
[377555401,1754441494659,-802.14,0.00036164,14]
[377555402,1754441494668,-400.0,0.00036164,14]
[377555403,1754441494678,-400.0,0.00036164,14]
[377555404,1754441494687,-1831.42,0.00036164,14]
[377555405,1754441494696,-400.0,0.00036164,14]
[377555406,1754441494705,-2563.76,0.00036164,14]
[377555407,1754441494714,-1012.37,0.00036164,14]
[377555408,1754441494724,-400.0,0.00036164,14]
[377555409,1754441494733,-1092.11,0.00036164,14]
[377555410,1754441494742,-400.0,0.00036164,14]
[377555411,1754441494751,-400.0,0.00036164,14]
[377555412,1754441494760,-400.0,0.00036164,14]
[377555413,1754441494770,-976.43,0.00036164,14]
[377555414,1754441494779,-1793.59,0.00036164,14]
[377555415,1754441494788,-400.0,0.00036164,14]
[377555416,1754441494797,-633.85,0.00036164,14]
[377555417,1754441494807,-400.0,0.00036164,14]
[377555418,1754441494823,-2925.51,0.00036164,14]
[377555419,1754441494834,-432.74,0.00036164,14]
[377555420,1754441494845,-482.25,0.00036164,14]
[377555421,1754441494857,-400.0,0.00036164,14]
[377555422,1754441494867,-789.29,0.00036164,14]
[377555423,1754441494876,-1260.09,0.00036164,14]
[377555424,1754441494886,-400.0,0.00036164,14]
[377555425,1754441494896,-432.63,0.00036164,14]
[377555426,1754441494905,-1520.6,0.00036164,14]
[377555427,1754441494914,-400.0,0.00036164,14]
[377555428,1754441494924,-400.0,0.00036164,14]
[377555429,1754441494935,-2128.76,0.00036164,14]
[377555430,1754441494944,-400.0,0.00036164,14]
[377555431,1754441494953,-400.0,0.00036164,14]
[377555432,1754441494962,-400.0,0.00036164,14]
[377555433,1754441494972,-803.75,0.00036164,14]
[377555434,1754441494981,-562.66,0.00036164,14]
[377555435,1754441494990,-500.43,0.00036164,14]
[377555436,1754441495000,-400.0,0.00036164,14]
[377555437,1754441495011,-400.0,0.00036164,14]
[377555438,1754441495021,-1073.31,0.00036164,14]
[377555439,1754441495030,-400.0,0.00036164,14]
[377555440,1754441495040,-400.0,0.00036164,14]
[377555441,1754441495050,-1380.22,0.00036164,14]
[377555442,1754441495059,-630.26,0.00036164,14]
[377555443,1754441495073,-990.2,0.00036164,14]
[377555444,1754441495084,-400.0,0.00036164,14]
[377555445,1754441495093,-1056.67,0.00036164,14]
[377555446,1754441495103,-400.0,0.00036164,14]
[377555447,1754441495113,-1352.62,0.00036164,14]
[377555448,1754441495122,-2203.22,0.00036164,14]
[377555449,1754441495132,-402.27,0.00036164,14]
[377555450,1754441495142,-400.0,0.00036164,14]
[377555451,1754441495155,-400.0,0.00036164,14]
[377555452,1754441495165,-457.26,0.00036164,14]
[377555453,1754441495174,-400.0,0.00036164,14]
[377555454,1754441495184,-1403.98,0.00036164,14]
[377555455,1754441495193,-426.72,0.00036164,14]
[377555456,1754441495203,-789.13,0.00036164,14]
[377555457,1754441495213,-400.0,0.00036164,14]
[377555458,1754441495222,-1233.25,0.00036164,14]
[377555459,1754441495232,-565.56,0.00036164,14]
[377555460,1754441495241,-1584.81,0.00036164,14]
[377555461,1754441495251,-1184.11,0.00036164,14]
[377555462,1754441495261,-694.37,0.00036164,14]
[377555463,1754441495271,-1738.04,0.00036164,14]
[377555464,1754441495281,-400.0,0.00036164,14]
[377555465,1754441495290,-400.0,0.00036164,14]
[377555466,1754441495299,-400.0,0.00036164,14]
[377555467,1754441495309,-460.65,0.00036164,14]
[377555468,1754441495319,-400.0,0.00036164,14]
[377555469,1754441495328,-400.0,0.00036164,14]
[377555470,1754441495338,-400.0,0.00036164,14]
[377555471,1754441495347,-400.0,0.00036164,14]
[377555472,1754441495356,-400.0,0.00036164,14]
[377555473,1754441495366,-400.0,0.00036164,14]
[377555474,1754441495375,-1939.96,0.00036164,14]
[377555475,1754441495385,-400.0,0.00036164,14]
[377555476,1754441495394,-2037.51,0.00036164,14]
[377555477,1754441495404,-565.74,0.00036164,14]
[377555478,1754441495413,-1516.12,0.00036164,14]
[377555479,1754441495422,-627.58,0.00036164,14]
[377555480,1754441495432,-400.0,0.00036164,14]
[377555481,1754441495441,-2234.11,0.00036164,14]
[377555482,1754441495451,-400.0,0.00036164,14]
[377555483,1754441495460,-469.14,0.00036164,14]
[377555484,1754441495469,-404.81,0.00036164,14]
[377555485,1754441495479,-400.0,0.00036164,14]
[377555486,1754441495488,-400.0,0.00036164,14]
[377555487,1754441495498,-955.74,0.00036164,14]
[377555488,1754441495510,-400.0,0.00036164,14]
[377555489,1754441495521,-2122.46,0.00036164,14]
[377555490,1754441495531,-400.0,0.00036164,14]
[377555491,1754441495541,-607.41,0.00036164,14]
[377555492,1754441495553,-497.75,0.00036164,14]
[377555493,1754441495564,-400.0,0.00036164,14]
[377555494,1754441495574,-1770.78,0.00036164,14]
[377555495,1754441495585,-400.0,0.00036164,2]
[377555496,1754441495595,-847.8,0.00036164,14]
[377555497,1754441495606,-469.6,0.00036164,14]
[377555498,1754441495616,-400.0,0.00036164,14]
[377555499,1754441495627,-400.0,0.00036164,14]
[377555500,1754441495638,-598.66,0.00036164,14]
[377555501,1754441495648,-400.0,0.00036164,14]
[377555502,1754441495658,-400.0,0.00036164,14]
[377555503,1754441495670,-400.0,0.00036164,14]
[377555504,1754441495680,-400.0,0.00036164,14]
[377555505,1754441495690,-400.0,0.00036164,14]
[377555506,1754441495700,-400.0,0.00036164,14]
[377555507,1754441495710,-400.0,0.00036164,14]
[377555508,1754441495720,-770.15,0.00036164,14]
[377555509,1754441495730,-627.63,0.00036164,14]
[377555510,1754441495741,-1138.8,0.00036164,14]
[377555511,1754441495751,-400.0,0.00036164,14]
[377555512,1754441495761,-2372.63,0.00036164,14]
[377555513,1754441495771,-400.0,0.00036164,14]
[377555514,1754441495787,-400.0,0.00036164,14]
[377555515,1754441495797,-1333.85,0.00036164,14]
[377555516,1754441495807,-400.0,0.00036164,14]
[377555517,1754441495817,-400.0,0.00036164,14]
[377555518,1754441495828,-856.89,0.00036164,14]
[377555519,1754441495838,-400.0,0.00036164,14]
[377555520,1754441495849,-709.28,0.00036164,14]
[377555521,1754441495862,-707.53,0.00036164,14]
[377555522,1754441495872,-400.0,0.00036164,14]
[377555523,1754441495883,-1904.13,0.00036164,14]
[377555524,1754441495893,-400.0,0.00036164,14]
[377555525,1754441495906,-1788.33,0.00036164,14]
[377555526,1754441495918,-400.0,0.00036164,14]
[377555527,1754441495929,-1127.01,0.00036164,14]
[377555528,1754441495940,-2204.89,0.00036164,14]
[377555529,1754441495951,-1765.45,0.00036164,14]
[377555530,1754441495962,-400.0,0.00036164,14]
[377555531,1754441495972,-598.14,0.00036164,14]
[377555532,1754441495983,-400.0,0.00036164,14]
[377555533,1754441495994,-400.0,0.00036164,14]
[377555534,1754441496005,-1408.2,0.00036164,14]
[377555535,1754441496016,-400.0,0.00036164,14]
[377555536,1754441496027,-400.0,0.00036164,14]
[377555537,1754441496038,-400.0,0.00036164,14]
[377555538,1754441496049,-400.0,0.00036164,14]
[377555539,1754441496060,-400.0,0.00036164,14]
[377555540,1754441496071,-400.0,0.00036164,14]
[377555541,1754441496083,-1254.83,0.00036164,14]
[377555542,1754441496094,-1977.88,0.00036164,14]
[377555543,1754441496105,-400.0,0.00036164,14]
[377555544,1754441496116,-2680.41,0.00036164,14]
[377555545,1754441496127,-400.0,0.00036164,14]
[377555546,1754441496138,-400.0,0.00036164,14]
[377555547,1754441496150,-1442.84,0.00036164,14]
[377555548,1754441496160,-400.0,0.00036164,14]
[377555549,1754441496171,-500.0,0.00036164,10]
[377555550,1754441496181,-400.0,0.00036164,14]
[377555551,1754441496192,-400.0,0.00036164,14]
[377555552,1754441496203,-400.0,0.00036164,14]
[377555553,1754441496214,-693.3,0.00036164,14]
[377555554,1754441496224,-1538.19,0.00036164,14]
[377555555,1754441496235,-955.6,0.00036164,14]
[377555556,1754441496246,-400.0,0.00036164,14]
[377555557,1754441496258,-400.0,0.00036164,14]
[377555558,1754441496269,-876.81,0.00036164,14]
[377555559,1754441496279,-400.0,0.00036164,14]
[377555560,1754441496291,-400.0,0.00036164,14]
[377555561,1754441496302,-400.0,0.00036164,14]
[377555562,1754441496313,-400.0,0.00036164,14]
[377555563,1754441496324,-1560.96,0.00036164,14]
[377555564,1754441496336,-2884.12,0.00036164,14]
[377555565,1754441496347,-1823.14,0.00036164,14]
[377555566,1754441496358,-1069.92,0.00036164,14]
[377555567,1754441496369,-400.0,0.00036164,14]
[377555568,1754441496380,-400.0,0.00036164,14]
[377555569,1754441496391,-400.0,0.00036164,14]
[377555570,1754441496402,-400.0,0.00036164,14]
[377555571,1754441496413,-1917.59,0.00036164,14]
[377555572,1754441496424,-400.0,0.00036164,14]
[377555573,1754441496434,-707.78,0.00036164,14]
[377555574,1754441496445,-3236.76,0.00036164,14]
[377555575,1754441496456,-400.0,0.00036164,14]
[377555576,1754441496468,-400.0,0.00036164,14]
[377555577,1754441496479,-400.0,0.00036164,14]
[377555578,1754441496490,-400.0,0.00036164,14]
[377555579,1754441496500,-728.45,0.00036164,14]
[377555580,1754441496512,-661.87,0.00036164,14]
[377555581,1754441496522,-400.0,0.00036164,14]
[377555582,1754441496532,-1383.65,0.00036164,14]
[377555583,1754441496543,-1041.19,0.00036164,14]
[377555584,1754441496554,-1777.11,0.00036164,14]
[377555585,1754441496564,-400.0,0.00036164,14]
[377555586,1754441496575,-1334.95,0.00036164,14]
[377555587,1754441496586,-1015.03,0.00036164,14]
[377555588,1754441496596,-968.38,0.00036164,14]
[377555589,1754441496607,-635.53,0.00036164,14]
[377555590,1754441496617,-400.0,0.00036164,14]
[377555591,1754441496628,-2081.63,0.00036164,14]
[377555592,1754441496638,-400.0,0.00036164,14]
[377555593,1754441496648,-423.76,0.00036164,14]
[377555594,1754441496659,-400.0,0.00036164,14]
[377555595,1754441496670,-400.0,0.00036164,14]
[377555596,1754441496680,-895.51,0.00036164,14]
[377555597,1754441496691,-400.0,0.00036164,14]
[377555598,1754441496702,-1449.56,0.00036164,14]
[377555599,1754441496712,-400.0,0.00036164,14]
[377555600,1754441496723,-11435.58,0.00036164,14]
[377555601,1754441496733,-1515.54,0.00036164,14]
[377555602,1754441496743,-400.0,0.00036164,14]
[377555603,1754441496753,-1291.07,0.00036164,14]
[377555604,1754441496764,-625.39,0.00036164,14]
[377555605,1754441496775,-1562.78,0.00036164,14]
[377555606,1754441496785,-400.0,0.00036164,14]
[377555607,1754441496796,-2431.68,0.00036164,14]
[377555608,1754441496806,-2052.06,0.00036164,14]
[377555609,1754441496816,-537.49,0.00036164,14]
[377555610,1754441496826,-400.0,0.00036164,14]
[377555611,1754441496837,-400.0,0.00036164,14]
[377555612,1754441496847,-597.53,0.00036164,14]
[377555613,1754441496860,-791.02,0.00036164,14]
[377555614,1754441496870,-1585.35,0.00036164,14]
[377555615,1754441496880,-400.0,0.00036164,14]
[377555616,1754441496890,-400.0,0.00036164,14]
[377555617,1754441496900,-400.0,0.00036164,14]
[377555618,1754441496911,-2032.78,0.00036164,14]
[377555619,1754441496922,-518.92,0.00036164,14]
[377555620,1754441496936,-400.0,0.00036164,14]
[377555621,1754441496946,-400.0,0.00036164,14]
[377555622,1754441496956,-400.0,0.00036164,14]
[377555623,1754441496967,-400.0,0.00036164,14]
[377555624,1754441496977,-400.0,0.00036164,14]
[377555625,1754441496989,-1104.87,0.00036164,14]
[377555626,1754441497000,-400.0,0.00036164,14]
[377555627,1754441497012,-1242.92,0.00036164,14]
[377555628,1754441497024,-619.07,0.00036164,14]
[377555629,1754441497035,-400.0,0.00036164,14]
[377555630,1754441497046,-400.0,0.00036164,14]
[377555631,1754441497056,-400.0,0.00036164,14]
[377555632,1754441497067,-1684.18,0.00036164,14]
[377555633,1754441497077,-400.0,0.00036164,14]
[377555634,1754441497087,-1981.92,0.00036164,14]
[377555635,1754441497098,-400.0,0.00036164,14]
[377555636,1754441497108,-2169.59,0.00036164,14]
[377555637,1754441497119,-400.0,0.00036164,14]
[377555638,1754441497130,-400.0,0.00036164,14]
[377555639,1754441497140,-1194.44,0.00036164,14]
[377555640,1754441497150,-816.65,0.00036164,14]
[377555641,1754441497160,-400.0,0.00036164,14]
[377555642,1754441497171,-400.0,0.00036164,14]
[377555643,1754441497182,-400.0,0.00036164,14]
[377555644,1754441497192,-2030.71,0.00036164,14]
[377555645,1754441497202,-400.0,0.00036164,14]
[377555646,1754441497212,-400.0,0.00036164,14]
[377555647,1754441497222,-1178.18,0.00036164,14]
[377555648,1754441497233,-1878.43,0.00036164,14]
[377555649,1754441497243,-400.0,0.00036164,14]
[377555650,1754441497253,-400.0,0.00036164,14]
[377555651,1754441497263,-400.0,0.00036164,14]
[377555652,1754441497273,-1180.71,0.00036164,14]
[377555653,1754441497283,-400.0,0.00036164,14]
[377555654,1754441497294,-400.0,0.00036164,14]
[377555655,1754441497305,-400.0,0.00036164,14]
[377555656,1754441497315,-1574.33,0.00036164,14]
[377555657,1754441497326,-3028.42,0.00036164,14]
[377555658,1754441497336,-446.11,0.00036164,14]
[377555659,1754441497346,-400.0,0.00036164,14]
[377555660,1754441497356,-400.0,0.00036164,14]
[377555661,1754441497366,-529.01,0.00036164,14]
[377555662,1754441497376,-1063.33,0.00036164,14]
[377555663,1754441497386,-400.0,0.00036164,14]
[377555664,1754441497397,-799.23,0.00036164,14]
[377555665,1754441497407,-1294.1,0.00036164,14]
[377555666,1754441497417,-400.0,0.00036164,14]
[377555667,1754441497427,-2197.22,0.00036164,14]
[377555668,1754441497438,-758.25,0.00036164,14]
[377555669,1754441497449,-475.53744304,0.00036164,14]
[377555670,1754441497460,-457.58,0.00036164,14]
[377555671,1754441497471,-404.24,0.00036164,14]
[377555672,1754441497482,-2890.04,0.00036164,2]
[377555673,1754441497492,-1085.43,0.00036164,14]
[377555674,1754441497503,-2675.69,0.00036164,14]
[377555675,1754441497513,-400.0,0.00036164,14]
[377555676,1754441497523,-400.0,0.00036164,14]
[377555677,1754441497533,-2837.9,0.00036164,14]
[377555678,1754441497543,-400.0,0.00036164,14]
[377555679,1754441497554,-400.0,0.00036164,14]
[377555680,1754441497564,-400.0,0.00036164,14]